[Event "*** Titled Tuesday 3|2 Blitz"]
[Site "Chess.com"]
[Date "2017.03.07"]
[Round "4"]
[White "AlexZambrano"]
[Black "Mischuk_D"]
[Result "0-1"]
[WhiteElo "2265"]
[BlackElo "2459"]
[TimeControl "180+2"]
[EndTime "13:52:31 PST"]
[Termination "Mischuk_D won by resignation"]

1. e4 {[%clk 0:02:54.7]} 1... c5 {[%clk 0:03:00.6]} 2. Nf3 {[%clk 0:02:55]} 2...
d6 {[%clk 0:03:01.8]} 3. d4 {[%clk 0:02:56.2]} 3... cxd4 {[%clk 0:03:03.7]} 4.
Nxd4 {[%clk 0:02:57.8]} 4... Nf6 {[%clk 0:03:05.1]} 5. Nc3 {[%clk 0:02:59]} 5...
Nc6 {[%clk 0:03:05.3]} 6. Bc4 {[%clk 0:02:59]} 6... Bd7 {[%clk 0:03:05.1]} 7.
Bb3 {[%clk 0:03:00]} 7... g6 {[%clk 0:03:05.2]} 8. f3 {[%clk 0:03:01]} 8... Nxd4
{[%clk 0:03:05.8]} 9. Qxd4 {[%clk 0:03:01.4]} 9... Bg7 {[%clk 0:03:07.7]} 10.
Be3 {[%clk 0:03:02.6]} 10... O-O {[%clk 0:03:08.2]} 11. Qd2 {[%clk 0:02:59.8]}
11... b5 {[%clk 0:03:09.4]} 12. O-O {[%clk 0:02:57.9]} 12... a5 {[%clk
0:03:10.3]} 13. a4 {[%clk 0:02:58.9]} 13... bxa4 {[%clk 0:03:11.4]} 14. Nxa4
{[%clk 0:02:55.5]} 14... Bxa4 {[%clk 0:03:08.8]} 15. Rxa4 {[%clk 0:02:52.2]}
15... Nd7 {[%clk 0:03:10.7]} 16. Bd5 {[%clk 0:02:35.7]} 16... Nb6 {[%clk
0:03:05.6]} 17. Rxa5 {[%clk 0:02:29.9]} 17... Rxa5 {[%clk 0:03:02.1]} 18. Qxa5
{[%clk 0:02:30.6]} 18... Nxd5 {[%clk 0:03:03.6]} 19. Qxd8 {[%clk 0:02:25.4]}
19... Rxd8 {[%clk 0:03:03.9]} 20. exd5 {[%clk 0:02:27.3]} 20... Bxb2 {[%clk
0:03:05]} 21. Rb1 {[%clk 0:02:28.4]} 21... Bf6 {[%clk 0:03:05.5]} 22. c4 {[%clk
0:02:27.2]} 22... Rc8 {[%clk 0:03:06]} 23. Rb4 {[%clk 0:02:28.3]} 23... g5
{[%clk 0:03:07]} 24. Kf1 {[%clk 0:02:29.3]} 24... Kg7 {[%clk 0:03:07.7]} 25. Ke2
{[%clk 0:02:30.5]} 25... h5 {[%clk 0:03:08.8]} 26. Kd3 {[%clk 0:02:26.8]} 26...
Kg6 {[%clk 0:03:09.7]} 27. Bd4 {[%clk 0:02:24.8]} 27... Ra8 {[%clk 0:03:09.3]}
28. Bxf6 {[%clk 0:02:18.9]} 28... Kxf6 {[%clk 0:03:10.4]} 29. Rb2 {[%clk
0:02:17]} 29... g4 {[%clk 0:03:05.6]} 30. fxg4 {[%clk 0:02:02.4]} 30... hxg4
{[%clk 0:03:05.9]} 31. Rf2+ {[%clk 0:02:03.5]} 31... Kg6 {[%clk 0:03:06.9]} 32.
Re2 {[%clk 0:02:04.5]} 32... Ra7 {[%clk 0:03:08.1]} 33. Kd4 {[%clk 0:02:03.2]}
33... Kg5 {[%clk 0:03:08.3]} 34. Rf2 {[%clk 0:01:54]} 34... f5 {[%clk
0:03:08.5]} 35. g3 {[%clk 0:01:55.3]} 35... Kf6 {[%clk 0:03:02.1]} 36. h3 {[%clk
0:01:29.5]} 36... gxh3 {[%clk 0:02:58.9]} 37. g4 {[%clk 0:01:30.3]} 37... Kg5
{[%clk 0:02:57.3]} 38. gxf5 {[%clk 0:01:28.5]} 38... Kg4 {[%clk 0:02:58.5]} 39.
f6 {[%clk 0:01:29.6]} 39... exf6 {[%clk 0:02:59.7]} 40. Rxf6 {[%clk 0:01:31.1]}
40... Rh7 {[%clk 0:03:00.1]} 41. Rg6+ {[%clk 0:01:28.2]} 41... Kf3 {[%clk
0:03:01.1]} 42. Rg1 {[%clk 0:01:29.1]} 42... Rh4+ {[%clk 0:02:57.1]} 43. Kc3
{[%clk 0:01:29.1]} 43... h2 {[%clk 0:02:58.3]} 44. Rh1 {[%clk 0:01:29.4]} 44...
Kg2 {[%clk 0:02:59]} 45. Rxh2+ {[%clk 0:01:29.9]} 45... Kxh2 {[%clk 0:02:59.7]}
46. Kb4 {[%clk 0:01:30.9]} 46... Kg3 {[%clk 0:02:57.6]} 47. Kb5 {[%clk
0:01:32.8]} 47... Kf4 {[%clk 0:02:58.6]} 48. c5 {[%clk 0:01:33]} 48... Ke5
{[%clk 0:02:57.3]} 49. Kc6 {[%clk 0:01:30]} 49... Rc4 {[%clk 0:02:55.3]} 0-1

[Event "*** Titled Tuesday 3|2 Blitz"]
[Site "Chess.com"]
[Date "2017.03.07"]
[Round "4"]
[White "StellarChessPro"]
[Black "VeraNebolsina"]
[Result "1-0"]
[WhiteElo "2341"]
[BlackElo "1668"]
[TimeControl "180+2"]
[EndTime "13:53:18 PST"]
[Termination "StellarChessPro won by checkmate"]

1. d4 {[%clk 0:03:01.9]} 1... Nf6 {[%clk 0:02:57.6]} 2. Bg5 {[%clk 0:03:02.3]}
2... d5 {[%clk 0:02:55.3]} 3. Bxf6 {[%clk 0:03:03.1]} 3... gxf6 {[%clk
0:02:53.5]} 4. e3 {[%clk 0:03:05]} 4... c5 {[%clk 0:02:54.2]} 5. c4 {[%clk
0:03:05.8]} 5... cxd4 {[%clk 0:02:49.9]} 6. Qxd4 {[%clk 0:03:06.4]} 6... Nc6
{[%clk 0:02:48.4]} 7. Qd2 {[%clk 0:03:03.2]} 7... d4 {[%clk 0:02:37.6]} 8. exd4
{[%clk 0:02:59.2]} 8... Qxd4 {[%clk 0:02:37.9]} 9. Qxd4 {[%clk 0:02:53.4]} 9...
Nxd4 {[%clk 0:02:38.3]} 10. Bd3 {[%clk 0:02:55.3]} 10... Bg4 {[%clk 0:02:27.2]}
11. h3 {[%clk 0:02:49.7]} 11... Bh5 {[%clk 0:02:28]} 12. Nc3 {[%clk 0:02:50.4]}
12... O-O-O {[%clk 0:02:23.6]} 13. g4 {[%clk 0:02:36.1]} 13... Bg6 {[%clk
0:02:23.9]} 14. Bxg6 {[%clk 0:02:37]} 14... hxg6 {[%clk 0:02:24.2]} 15. O-O-O
{[%clk 0:02:36.9]} 15... f5 {[%clk 0:02:10]} 16. Nge2 {[%clk 0:02:27.4]} 16...
Bh6+ {[%clk 0:01:31.6]} 17. Kb1 {[%clk 0:02:26.2]} 17... Nxe2 {[%clk 0:01:32.1]}
18. Nxe2 {[%clk 0:02:28.1]} 18... e6 {[%clk 0:01:33.4]} 19. gxf5 {[%clk
0:02:23.2]} 19... exf5 {[%clk 0:01:28.7]} 20. Nc3 {[%clk 0:02:21.7]} 20... Rxd1+
{[%clk 0:01:23.2]} 21. Rxd1 {[%clk 0:02:17.9]} 21... Bg7 {[%clk 0:01:24.2]} 22.
Rd3 {[%clk 0:02:19.1]} 22... Rh4 {[%clk 0:01:17.1]} 23. b3 {[%clk 0:02:16.1]}
23... Rf4 {[%clk 0:01:15.8]} 24. Nb5 {[%clk 0:02:09.5]} 24... a6 {[%clk
0:00:59.1]} 25. Nd6+ {[%clk 0:02:07.1]} 25... Kb8 {[%clk 0:01:00.1]} 26. f3
{[%clk 0:01:34.8]} 26... Rh4 {[%clk 0:01:00.3]} 27. Nxf7 {[%clk 0:01:36.1]}
27... Rxh3 {[%clk 0:01:00.1]} 28. Nd6 {[%clk 0:01:33.9]} 28... Rh2 {[%clk
0:00:57.4]} 29. Nxb7 {[%clk 0:01:32.5]} 29... Rb2+ {[%clk 0:00:51.2]} 30. Kc1
{[%clk 0:01:33.5]} 30... Rxa2 {[%clk 0:00:52.4]} 31. Rd8+ {[%clk 0:01:28.9]}
31... Ka7 {[%clk 0:00:51.5]} 32. Rd7 {[%clk 0:01:29.8]} 32... Bh6+ {[%clk
0:00:52.2]} 33. Kd1 {[%clk 0:01:29.9]} 33... Kb6 {[%clk 0:00:51.6]} 34. b4
{[%clk 0:01:25.8]} 34... Kc6 {[%clk 0:00:49.2]} 35. Rh7 {[%clk 0:01:25.3]} 35...
Bd2 {[%clk 0:00:42.5]} 36. Na5+ {[%clk 0:01:24.6]} 36... Kb6 {[%clk 0:00:40.2]}
37. Rb7# {[%clk 0:01:24.7]} 1-0

[Event "*** Titled Tuesday 3|2 Blitz"]
[Site "Chess.com"]
[Date "2017.03.07"]
[Round "4"]
[White "silverback96"]
[Black "Shivagami"]
[Result "1-0"]
[WhiteElo "2074"]
[BlackElo "1957"]
[TimeControl "180+2"]
[EndTime "13:53:22 PST"]
[Termination "silverback96 won on time"]

1. d4 {[%clk 0:03:02]} 1... Nf6 {[%clk 0:03:00.1]} 2. c4 {[%clk 0:02:54]} 2...
g6 {[%clk 0:02:59.9]} 3. g3 {[%clk 0:02:54.8]} 3... c6 {[%clk 0:02:58.9]} 4. Bg2
{[%clk 0:02:55.2]} 4... d5 {[%clk 0:02:57.6]} 5. cxd5 {[%clk 0:02:57.1]} 5...
cxd5 {[%clk 0:02:58.5]} 6. Qa4+ {[%clk 0:02:59]} 6... Nc6 {[%clk 0:02:56.7]} 7.
Nc3 {[%clk 0:02:56.3]} 7... Bg7 {[%clk 0:02:55.3]} 8. h4 {[%clk 0:02:56.6]} 8...
h5 {[%clk 0:02:40.6]} 9. Bg5 {[%clk 0:02:55.8]} 9... O-O {[%clk 0:02:35.4]} 10.
Rd1 {[%clk 0:02:46.5]} 10... Be6 {[%clk 0:02:08.9]} 11. Nh3 {[%clk 0:02:47.4]}
11... Ne4 {[%clk 0:01:22]} 12. Nf4 {[%clk 0:02:30.2]} 12... Nxc3 {[%clk
0:00:59.7]} 13. bxc3 {[%clk 0:02:32.1]} 13... Qd7 {[%clk 0:01:00.4]} 14. Qb5
{[%clk 0:02:29.3]} 14... Rfd8 {[%clk 0:00:59.4]} 15. O-O {[%clk 0:02:14.4]}
15... a6 {[%clk 0:00:57.4]} 16. Qc5 {[%clk 0:02:12.2]} 16... Rac8 {[%clk
0:00:55]} 17. Nxe6 {[%clk 0:02:10.2]} 17... Qxe6 {[%clk 0:00:52.3]} 18. c4
{[%clk 0:02:11]} 18... Nxd4 {[%clk 0:00:42.4]} 19. Qxe7 {[%clk 0:02:09]} 19...
Nxe2+ {[%clk 0:00:33.8]} 20. Kh2 {[%clk 0:02:09.2]} 20... Qxe7 {[%clk
0:00:28.3]} 21. Bxe7 {[%clk 0:02:11.1]} 21... Re8 {[%clk 0:00:28.1]} 22. Bg5
{[%clk 0:02:07.1]} 22... dxc4 {[%clk 0:00:20.5]} 23. Bxb7 {[%clk 0:02:08.1]}
23... Rc7 {[%clk 0:00:21.3]} 24. Bxa6 {[%clk 0:02:09.3]} 24... c3 {[%clk
0:00:21.9]} 25. Rfe1 {[%clk 0:02:10.2]} 25... Nd4 {[%clk 0:00:20.5]} 26. Rxe8+
{[%clk 0:02:10.7]} 26... Kh7 {[%clk 0:00:21.6]} 27. Rc8 {[%clk 0:02:07.7]} 27...
Ra7 {[%clk 0:00:18.6]} 28. Bc4 {[%clk 0:02:05.6]} 28... Rb7 {[%clk 0:00:12.9]}
29. Be3 {[%clk 0:02:00]} 29... Nf3+ {[%clk 0:00:11]} 30. Kg2 {[%clk 0:02:00.2]}
30... Ne5 {[%clk 0:00:10.2]} 31. Bd5 {[%clk 0:01:59.8]} 31... Rb2 {[%clk
0:00:05.6]} 32. Rxc3 {[%clk 0:02:00.6]} 32... Rxa2 {[%clk 0:00:03.7]} 33. Bxa2
{[%clk 0:02:01.1]} 1-0

[Event "*** Titled Tuesday 3|2 Blitz"]
[Site "Chess.com"]
[Date "2017.03.07"]
[Round "4"]
[White "MatBobula"]
[Black "PaulfromSPb"]
[Result "0-1"]
[WhiteElo "2279"]
[BlackElo "2530"]
[TimeControl "180+2"]
[EndTime "13:53:40 PST"]
[Termination "PaulfromSPb won by resignation"]

1. d4 {[%clk 0:03:02]} 1... Nf6 {[%clk 0:03:00.4]} 2. c4 {[%clk 0:02:59.8]} 2...
e6 {[%clk 0:03:01.2]} 3. Nf3 {[%clk 0:03:00]} 3... b6 {[%clk 0:03:02.1]} 4. g3
{[%clk 0:03:00.9]} 4... Ba6 {[%clk 0:03:02.6]} 5. b3 {[%clk 0:03:00.7]} 5...
Bb4+ {[%clk 0:03:03.7]} 6. Bd2 {[%clk 0:03:01.4]} 6... Be7 {[%clk 0:03:04.9]} 7.
Bg2 {[%clk 0:03:00.9]} 7... c6 {[%clk 0:03:06.4]} 8. O-O {[%clk 0:03:01.9]} 8...
d5 {[%clk 0:03:08.3]} 9. Bc3 {[%clk 0:03:03.3]} 9... O-O {[%clk 0:03:08]} 10.
Nbd2 {[%clk 0:03:04.5]} 10... Nbd7 {[%clk 0:03:09.4]} 11. Re1 {[%clk 0:03:02.9]}
11... Rc8 {[%clk 0:03:10.4]} 12. e4 {[%clk 0:03:02.8]} 12... dxe4 {[%clk
0:03:09.2]} 13. Nxe4 {[%clk 0:03:03.8]} 13... Nxe4 {[%clk 0:03:10.6]} 14. Rxe4
{[%clk 0:03:05]} 14... c5 {[%clk 0:03:12.2]} 15. Re2 {[%clk 0:02:54.7]} 15...
Bb7 {[%clk 0:03:12.4]} 16. Rd2 {[%clk 0:02:52.4]} 16... Qc7 {[%clk 0:03:09.1]}
17. Qc2 {[%clk 0:02:42.9]} 17... Nf6 {[%clk 0:03:06.8]} 18. dxc5 {[%clk
0:02:26.4]} 18... Qxc5 {[%clk 0:03:07]} 19. Bd4 {[%clk 0:02:09.6]} 19... Qh5
{[%clk 0:03:05.5]} 20. Ne5 {[%clk 0:01:58.1]} 20... Bxg2 {[%clk 0:03:04.6]} 21.
Kxg2 {[%clk 0:02:00]} 21... Rfd8 {[%clk 0:03:04.6]} 22. f4 {[%clk 0:01:42.5]}
22... Ng4 {[%clk 0:03:00.9]} 23. Nxg4 {[%clk 0:01:39]} 23... Qxg4 {[%clk
0:03:01]} 24. Rad1 {[%clk 0:01:37.5]} 24... h5 {[%clk 0:02:57]} 25. h3 {[%clk
0:01:33.4]} 25... Qf5 {[%clk 0:02:57.5]} 26. Qxf5 {[%clk 0:01:33.8]} 26... exf5
{[%clk 0:02:59.4]} 27. Be5 {[%clk 0:01:32.9]} 27... Rxd2+ {[%clk 0:02:52.5]} 28.
Rxd2 {[%clk 0:01:34.8]} 28... a5 {[%clk 0:02:54]} 29. Rd7 {[%clk 0:01:33.6]}
29... Bc5 {[%clk 0:02:54.9]} 30. Kf3 {[%clk 0:01:31.2]} 30... Re8 {[%clk
0:02:52.7]} 31. Bd4 {[%clk 0:01:19.4]} 31... Bxd4 {[%clk 0:02:53.4]} 32. Rxd4
{[%clk 0:01:21.1]} 32... Re6 {[%clk 0:02:53.6]} 33. Rd7 {[%clk 0:01:13.9]} 33...
g6 {[%clk 0:02:54.6]} 34. Rb7 {[%clk 0:01:14.6]} 34... Kg7 {[%clk 0:02:53.9]}
35. a3 {[%clk 0:01:15.1]} 35... Rc6 {[%clk 0:02:51.4]} 36. Ke3 {[%clk
0:01:14.7]} 36... a4 {[%clk 0:02:49.2]} 37. bxa4 {[%clk 0:01:12.2]} 37... Rxc4
{[%clk 0:02:50.4]} 38. Rxb6 {[%clk 0:01:11.8]} 38... Rc3+ {[%clk 0:02:51.5]} 39.
Kf2 {[%clk 0:01:08.2]} 39... Rxa3 {[%clk 0:02:52.4]} 40. Ra6 {[%clk 0:01:08.2]}
40... h4 {[%clk 0:02:53.6]} 41. gxh4 {[%clk 0:00:59.4]} 41... Rxh3 {[%clk
0:02:54]} 42. a5 {[%clk 0:00:57.3]} 42... Rxh4 {[%clk 0:02:54.7]} 43. Kg3 {[%clk
0:00:58.6]} 43... Rh1 {[%clk 0:02:55.4]} 44. Ra8 {[%clk 0:00:58.8]} 44... Ra1
{[%clk 0:02:55.4]} 45. a6 {[%clk 0:00:59.5]} 45... Ra3+ {[%clk 0:02:53.5]} 46.
Kf2 {[%clk 0:01:00.1]} 46... f6 {[%clk 0:02:52.3]} 47. Ra7+ {[%clk 0:00:52.7]}
47... Kh6 {[%clk 0:02:53.2]} 48. Ra8 {[%clk 0:00:52.5]} 48... g5 {[%clk
0:02:54.5]} 49. fxg5+ {[%clk 0:00:38.4]} 49... fxg5 {[%clk 0:02:55.1]} 50. a7
{[%clk 0:00:39.7]} 50... Kg7 {[%clk 0:02:55.4]} 51. Kg2 {[%clk 0:00:36.2]} 51...
g4 {[%clk 0:02:55.7]} 52. Kf2 {[%clk 0:00:37.5]} 52... f4 {[%clk 0:02:56.8]} 53.
Kg2 {[%clk 0:00:37.6]} 53... Ra2+ {[%clk 0:02:57.7]} 54. Kg1 {[%clk 0:00:38.7]}
54... f3 {[%clk 0:02:57.8]} 55. Rb8 {[%clk 0:00:18.5]} 55... Rxa7 {[%clk
0:02:57.8]} 56. Kf2 {[%clk 0:00:19.1]} 56... Ra2+ {[%clk 0:02:57.9]} 57. Kg3
{[%clk 0:00:20.6]} 57... Rg2+ {[%clk 0:02:58.7]} 0-1

[Event "*** Titled Tuesday 3|2 Blitz"]
[Site "Chess.com"]
[Date "2017.03.07"]
[Round "4"]
[White "Vamostodorecto"]
[Black "TheNextLevelFan"]
[Result "0-1"]
[WhiteElo "2373"]
[BlackElo "2368"]
[TimeControl "180+2"]
[EndTime "13:54:01 PST"]
[Termination "TheNextLevelFan won by resignation"]

1. d4 {[%clk 0:03:02]} 1... Nf6 {[%clk 0:02:59]} 2. c4 {[%clk 0:03:02.5]} 2...
g6 {[%clk 0:02:59.4]} 3. Nc3 {[%clk 0:03:02.9]} 3... Bg7 {[%clk 0:03:00.2]} 4.
e4 {[%clk 0:03:03.2]} 4... d6 {[%clk 0:03:02.1]} 5. Be2 {[%clk 0:03:04.4]} 5...
O-O {[%clk 0:03:03.7]} 6. Nf3 {[%clk 0:03:05.6]} 6... c5 {[%clk 0:03:03.6]} 7.
d5 {[%clk 0:03:05.3]} 7... Nbd7 {[%clk 0:03:04.4]} 8. O-O {[%clk 0:03:06.8]}
8... a6 {[%clk 0:03:05.3]} 9. Bf4 {[%clk 0:03:01.1]} 9... Ng4 {[%clk 0:03:02.2]}
10. h3 {[%clk 0:02:55.4]} 10... Nge5 {[%clk 0:03:02.2]} 11. Nxe5 {[%clk
0:02:53.9]} 11... Nxe5 {[%clk 0:03:04.1]} 12. Qd2 {[%clk 0:02:53]} 12... Re8
{[%clk 0:03:01.6]} 13. Bh6 {[%clk 0:02:53.4]} 13... Bh8 {[%clk 0:03:02]} 14. f4
{[%clk 0:02:53.3]} 14... Nd7 {[%clk 0:03:02.9]} 15. Bd3 {[%clk 0:02:44.6]} 15...
b5 {[%clk 0:02:59.6]} 16. cxb5 {[%clk 0:02:43.7]} 16... axb5 {[%clk 0:03:00.8]}
17. Bxb5 {[%clk 0:02:42.2]} 17... Ba6 {[%clk 0:03:02.3]} 18. Bxa6 {[%clk
0:02:33.8]} 18... Rxa6 {[%clk 0:03:02.7]} 19. Rae1 {[%clk 0:02:35]} 19... Qa8
{[%clk 0:02:58.4]} 20. Re2 {[%clk 0:02:07.9]} 20... Bd4+ {[%clk 0:02:56.8]} 21.
Kh1 {[%clk 0:02:06.2]} 21... Rb8 {[%clk 0:02:58.4]} 22. Bg5 {[%clk 0:01:21.7]}
22... f6 {[%clk 0:02:36.8]} 23. Bh4 {[%clk 0:01:22.4]} 23... Nb6 {[%clk
0:02:37.2]} 24. b3 {[%clk 0:01:11.6]} 24... Bxc3 {[%clk 0:02:36]} 25. Qxc3
{[%clk 0:01:13.5]} 25... Rxa2 {[%clk 0:02:37.3]} 26. Rxa2 {[%clk 0:00:49.9]}
26... Qxa2 {[%clk 0:02:39.2]} 27. Re1 {[%clk 0:00:43.9]} 27... Nd7 {[%clk
0:02:24]} 28. Re3 {[%clk 0:00:39.3]} 28... Rb4 {[%clk 0:02:11.7]} 29. Bg3 {[%clk
0:00:32.3]} 29... Qb1+ {[%clk 0:02:10.2]} 30. Kh2 {[%clk 0:00:23.7]} 30... Rxe4
{[%clk 0:02:11.1]} 31. Rxe4 {[%clk 0:00:21]} 31... Qxe4 {[%clk 0:02:11.4]} 32.
Qa5 {[%clk 0:00:22.4]} 32... Kf7 {[%clk 0:01:59.3]} 33. Qd8 {[%clk 0:00:23.1]}
33... Nf8 {[%clk 0:01:35.1]} 34. Qa8 {[%clk 0:00:22.2]} 34... Qb4 {[%clk
0:01:33.4]} 35. Qa2 {[%clk 0:00:20.2]} 35... Nd7 {[%clk 0:01:28]} 36. Qe2 {[%clk
0:00:19]} 36... Nf8 {[%clk 0:01:26.7]} 37. f5 {[%clk 0:00:18.7]} 37... Qxb3
{[%clk 0:01:25.6]} 38. fxg6+ {[%clk 0:00:18.9]} 38... hxg6 {[%clk 0:01:26.3]}
39. Qd1 {[%clk 0:00:16.8]} 39... Qxd1 {[%clk 0:01:26.6]} 0-1

[Event "*** Titled Tuesday 3|2 Blitz"]
[Site "Chess.com"]
[Date "2017.03.07"]
[Round "4"]
[White "coalescenet"]
[Black "Vrolijk"]
[Result "0-1"]
[WhiteElo "2243"]
[BlackElo "2324"]
[TimeControl "180+2"]
[EndTime "13:54:05 PST"]
[Termination "Vrolijk won by resignation"]

1. d4 {[%clk 0:03:02]} 1... Nf6 {[%clk 0:03:00.4]} 2. c4 {[%clk 0:03:03.4]} 2...
e6 {[%clk 0:03:00.3]} 3. Nf3 {[%clk 0:03:03.7]} 3... d5 {[%clk 0:02:58.4]} 4.
Nc3 {[%clk 0:03:04.5]} 4... c6 {[%clk 0:02:54.8]} 5. cxd5 {[%clk 0:03:02.9]}
5... exd5 {[%clk 0:02:50.9]} 6. Bg5 {[%clk 0:03:03.6]} 6... Be7 {[%clk
0:02:50.1]} 7. e3 {[%clk 0:03:04.7]} 7... Bf5 {[%clk 0:02:49.9]} 8. Nh4 {[%clk
0:02:51.4]} 8... Bg4 {[%clk 0:02:44.6]} 9. f3 {[%clk 0:02:47.1]} 9... Be6 {[%clk
0:02:45]} 10. Bd3 {[%clk 0:02:44.7]} 10... h6 {[%clk 0:02:41.7]} 11. Bxf6 {[%clk
0:02:45]} 11... Bxf6 {[%clk 0:02:43.6]} 12. Nf5 {[%clk 0:02:46.4]} 12... g6
{[%clk 0:02:43.6]} 13. Ng3 {[%clk 0:02:43]} 13... Nd7 {[%clk 0:02:35.1]} 14. O-O
{[%clk 0:02:31.8]} 14... h5 {[%clk 0:02:34.8]} 15. Nge2 {[%clk 0:02:22.8]} 15...
O-O {[%clk 0:02:18.8]} 16. Qe1 {[%clk 0:02:00.6]} 16... Bh4 {[%clk 0:02:11.3]}
17. g3 {[%clk 0:01:52.4]} 17... Bg5 {[%clk 0:02:07.9]} 18. Qf2 {[%clk
0:01:44.5]} 18... Re8 {[%clk 0:02:04.4]} 19. e4 {[%clk 0:01:42.6]} 19... Bh3
{[%clk 0:01:45.8]} 20. Rfd1 {[%clk 0:01:31]} 20... dxe4 {[%clk 0:01:46.2]} 21.
fxe4 {[%clk 0:01:30.1]} 21... Nf6 {[%clk 0:01:46.5]} 22. Bc4 {[%clk 0:01:19.5]}
22... Qc7 {[%clk 0:01:28.4]} 23. e5 {[%clk 0:00:56.1]} 23... Ng4 {[%clk
0:01:27]} 24. Qf3 {[%clk 0:00:55.1]} 24... Be3+ {[%clk 0:01:24.9]} 25. Kh1
{[%clk 0:00:55.1]} 25... Nf2+ {[%clk 0:01:24.4]} 26. Kg1 {[%clk 0:00:52.4]}
26... Nxd1+ {[%clk 0:01:25.2]} 27. Kh1 {[%clk 0:00:53.9]} 27... Nf2+ {[%clk
0:01:18.5]} 28. Kg1 {[%clk 0:00:52.9]} 28... Ng4+ {[%clk 0:01:03.2]} 29. Kh1
{[%clk 0:00:53.2]} 29... b5 {[%clk 0:00:59]} 30. Bb3 {[%clk 0:00:52.7]} 30...
Nf2+ {[%clk 0:00:52.3]} 31. Kg1 {[%clk 0:00:52.1]} 31... Nd1+ {[%clk 0:00:53.4]}
32. Kh1 {[%clk 0:00:53.3]} 32... Bg4 {[%clk 0:00:53.1]} 33. Qe4 {[%clk
0:00:40.5]} 33... Nf2+ {[%clk 0:00:53.4]} 0-1

[Event "*** Titled Tuesday 3|2 Blitz"]
[Site "Chess.com"]
[Date "2017.03.07"]
[Round "4"]
[White "manubibi"]
[Black "GM_Splinter"]
[Result "0-1"]
[WhiteElo "2393"]
[BlackElo "2272"]
[TimeControl "180+2"]
[EndTime "13:54:39 PST"]
[Termination "GM_Splinter won on time"]

1. e4 {[%clk 0:03:02]} 1... e5 {[%clk 0:03:00.7]} 2. Nf3 {[%clk 0:03:02.3]} 2...
Nc6 {[%clk 0:03:02.3]} 3. Bb5 {[%clk 0:03:02]} 3... a6 {[%clk 0:03:03.3]} 4. Ba4
{[%clk 0:03:03.2]} 4... Nf6 {[%clk 0:03:03.9]} 5. O-O {[%clk 0:03:04.4]} 5... b5
{[%clk 0:03:05]} 6. Bb3 {[%clk 0:03:04.6]} 6... Bc5 {[%clk 0:03:06.6]} 7. a4
{[%clk 0:03:02.3]} 7... Rb8 {[%clk 0:03:04.9]} 8. axb5 {[%clk 0:03:02.8]} 8...
axb5 {[%clk 0:03:05.7]} 9. Nxe5 {[%clk 0:03:04.4]} 9... Nxe5 {[%clk 0:03:06.6]}
10. d4 {[%clk 0:03:06]} 10... Bxd4 {[%clk 0:03:07.4]} 11. Qxd4 {[%clk
0:03:07.7]} 11... d6 {[%clk 0:03:08.6]} 12. f4 {[%clk 0:03:02.5]} 12... Nc6
{[%clk 0:03:03.5]} 13. Qc3 {[%clk 0:02:35.4]} 13... Ne7 {[%clk 0:03:03.5]} 14.
e5 {[%clk 0:02:34.2]} 14... Ne4 {[%clk 0:03:04]} 15. Qb4 {[%clk 0:02:11.3]}
15... Nc5 {[%clk 0:02:13.9]} 16. Nc3 {[%clk 0:01:18.8]} 16... O-O {[%clk
0:02:05.1]} 17. exd6 {[%clk 0:01:13.4]} 17... cxd6 {[%clk 0:02:03.6]} 18. Bd5
{[%clk 0:00:39]} 18... Nxd5 {[%clk 0:01:24.5]} 19. Nxd5 {[%clk 0:00:39.8]} 19...
Bb7 {[%clk 0:01:25.9]} 20. Qd4 {[%clk 0:00:36.9]} 20... Re8 {[%clk 0:01:25.2]}
21. f5 {[%clk 0:00:31.8]} 21... Re4 {[%clk 0:01:18.9]} 22. Qd1 {[%clk
0:00:30.2]} 22... Re5 {[%clk 0:01:05.2]} 23. Ne3 {[%clk 0:00:24.9]} 23... Qb6
{[%clk 0:00:47.9]} 24. Kh1 {[%clk 0:00:21.8]} 24... Qc6 {[%clk 0:00:48.1]} 25.
Qg4 {[%clk 0:00:19.9]} 25... Rbe8 {[%clk 0:00:44.3]} 26. f6 {[%clk 0:00:21]}
26... g6 {[%clk 0:00:44.2]} 27. Nf5 {[%clk 0:00:19.2]} 27... Rxf5 {[%clk
0:00:41.8]} 28. Bh6 {[%clk 0:00:10.1]} 28... Ree5 {[%clk 0:00:34.2]} 29. Rxf5
{[%clk 0:00:09.7]} 29... Rxf5 {[%clk 0:00:34.3]} 30. Re1 {[%clk 0:00:11.4]}
30... Rxf6 {[%clk 0:00:32.6]} 31. h4 {[%clk 0:00:11.7]} 31... Rf2 {[%clk
0:00:32.3]} 32. Qg5 {[%clk 0:00:04.9]} 32... f6 {[%clk 0:00:25.1]} 0-1

[Event "*** Titled Tuesday 3|2 Blitz"]
[Site "Chess.com"]
[Date "2017.03.07"]
[Round "4"]
[White "Fandorine"]
[Black "Keranke"]
[Result "1-0"]
[WhiteElo "2632"]
[BlackElo "2720"]
[TimeControl "180+2"]
[EndTime "13:54:45 PST"]
[Termination "Fandorine won by resignation"]

1. e4 {[%clk 0:03:02]} 1... g6 {[%clk 0:03:01.3]} 2. d4 {[%clk 0:03:03]} 2...
Bg7 {[%clk 0:03:02.8]} 3. Nc3 {[%clk 0:03:04.6]} 3... d6 {[%clk 0:03:04.2]} 4.
h3 {[%clk 0:03:05.8]} 4... a6 {[%clk 0:03:05.3]} 5. g4 {[%clk 0:03:06.6]} 5...
b5 {[%clk 0:03:06.3]} 6. Bg2 {[%clk 0:03:08.1]} 6... Bb7 {[%clk 0:03:07.6]} 7.
a3 {[%clk 0:03:08]} 7... Nd7 {[%clk 0:03:08.9]} 8. Nge2 {[%clk 0:03:09.2]} 8...
c5 {[%clk 0:03:10.3]} 9. Be3 {[%clk 0:03:10.8]} 9... Rc8 {[%clk 0:03:09.1]} 10.
O-O {[%clk 0:03:11.6]} 10... Qc7 {[%clk 0:02:30.1]} 11. f4 {[%clk 0:02:55.3]}
11... cxd4 {[%clk 0:02:29.2]} 12. Nxd4 {[%clk 0:02:56.3]} 12... e5 {[%clk
0:02:30.2]} 13. Ndxb5 {[%clk 0:02:57]} 13... axb5 {[%clk 0:02:26.6]} 14. Nxb5
{[%clk 0:02:58.2]} 14... Qb8 {[%clk 0:02:20.7]} 15. Nxd6+ {[%clk 0:02:55.9]}
15... Kf8 {[%clk 0:02:21.9]} 16. Nxc8 {[%clk 0:02:48.1]} 16... Bxc8 {[%clk
0:02:23.8]} 17. f5 {[%clk 0:02:46.8]} 17... Bf6 {[%clk 0:01:47.5]} 18. g5 {[%clk
0:02:17]} 18... Bd8 {[%clk 0:01:44.9]} 19. b4 {[%clk 0:01:58]} 19... Bb6 {[%clk
0:01:38.5]} 20. Qd2 {[%clk 0:01:43.9]} 20... Ne7 {[%clk 0:01:24.5]} 21. c4
{[%clk 0:01:41.4]} 21... Bxe3+ {[%clk 0:01:15.5]} 22. Qxe3 {[%clk 0:01:43.3]}
22... Nc6 {[%clk 0:00:57.6]} 23. Rf2 {[%clk 0:01:44.2]} 23... Nd4 {[%clk
0:00:49.2]} 24. Raf1 {[%clk 0:01:43]} 24... gxf5 {[%clk 0:00:50.1]} 25. exf5
{[%clk 0:01:44.5]} 25... Bb7 {[%clk 0:00:44.9]} 26. c5 {[%clk 0:01:26.3]} 26...
Rg8 {[%clk 0:00:39.5]} 27. h4 {[%clk 0:01:26.4]} 27... f6 {[%clk 0:00:21.4]} 28.
Rd2 {[%clk 0:01:14.9]} 28... Qa8 {[%clk 0:00:20.5]} 29. g6 {[%clk 0:00:30.1]}
29... hxg6 {[%clk 0:00:19.4]} 30. Qh6+ {[%clk 0:00:31.3]} 30... Kf7 {[%clk
0:00:18.5]} 31. Qh7+ {[%clk 0:00:32.7]} 31... Rg7 {[%clk 0:00:16.1]} 32. fxg6+
{[%clk 0:00:34.1]} 32... Kf8 {[%clk 0:00:17.7]} 33. Qh8+ {[%clk 0:00:34.4]}
33... Rg8 {[%clk 0:00:19.3]} 34. Rxf6+ {[%clk 0:00:31.2]} 34... Ke7 {[%clk
0:00:18.5]} 35. Qh7+ {[%clk 0:00:24.8]} 1-0